Workbook

Sheet Input
B5: Kostenvergelijking
B6: Elektrische auto vs. brandstof auto
C8: Vul de lichtblauwe cellen in om te berekenen wat voor jou de voordeligste optie is. Klik daarna op de knop "Start" om de berekening te starten.
C10: Gegevens | E10: Elektrisch | G10: Brandstof
C13: FUNCTIONALITEITEN
C14: Merk, model en type | E14: Skoda Citigo Ambition | G14: VW up Basis
C15: Motorinhoud (KWH / CC) | E15: 38 | G15: 1,000
C16: Vermogen KwH / pk | E16: 60 / 83 | G16: 48 / 65
C17: Topsnelheid km / uur | E17: 130 | G17: 163
C18: Actieradius in km | E18: 260 | G18: 650
C19: Afmetingen | E19: conform up | G19: conform Citigo
C20: Accessoires:
D21: Automaat | E21: traploos | G21: niet leverbaar
D22: verwarming / koeling | E22: climate control | G22: nee
D23: cruise control | E23: ja | G23: ja
D24: navigatie | E24: Skoda app | G24: VW app
C26: KOSTEN
C27: Cataloguswaarde | E27: € 23,290.00 | G27: € 15,925.00
C28: Totaal bedrag accessoires | E28: € 600.00 | G28: € 1,234.00
C29: Totaal per jaar te rijden km's | E29: 20,000 | G29: 20,000
C30: Leaseprijs (10.000 km / 5 jaar / max. no-claim) | E30: € 369.00 | G30: € 309.00
C31: Meerprijs per km | E31: € 0.05 | G31: € 0.06
C32: KwH / brandstofprijs | E32: 0.25 | G32: 1.60
C33: Km per KwH / liter brandstof | E33: 7.00 | G33: 20.00

Sheet Output
B5: Kostenvergelijking
B6: Elektrische auto vs. brandstof auto
D9: Voordeligste optie | E9: =IF(E21-G21<0,"Elektrisch ","Brandstof") -> Elektrisch
D10: Verschil op jaarbasis | E10: =IF((E21-G21)<0,((E21-G21)*-1)*12,(E21-G21)*12) -> € 266
D11: Besparing na 5 jaar | E11: =Output!E10*5 -> € 1,329
C14: Gegevens | E14: Elektrisch | G14: Brandstof
E16: € | G16: €
C17: UITKOMST
C18: Leaseprijs (10.000 km / 5 jaar / max. no-claim) | E18: =Input!E30 -> 369 | G18: =Input!G30 -> 309
C19: Leasekosten per maand voor de extra km | E19: =+Output!$E41*Input!E31/12 -> 42 | G19: =+Output!$E41*Input!G31/12 -> 50
C20: Energie / brandstofkosten per maand voor alle km's | E20: =+Input!$E29/12*E43 -> 60 | G20: =+Input!$E29/12*G43 -> 133
C21: Totale kosten per maand | E21: =SUM(E18:E20) -> 470 | G21: =SUM(G18:G20) -> 492
C23: FUNCTIONALITEITEN
C24: Merk, model en type | E24: =Input!E14 -> Skoda Citigo Ambition | G24: =Input!G14 -> VW up Basis
C25: Motorinhoud (KWH / CC) | E25: =Input!E15 -> 38 | G25: =Input!G15 -> 1,000
C26: Vermogen KwH / pk | E26: =Input!E16 -> 60 / 83 | G26: =Input!G16 -> 48 / 65
C27: Topsnelheid km / uur | E27: =Input!E17 -> 130 | G27: =Input!G17 -> 163
C28: Actieradius in km | E28: =Input!E18 -> 260 | G28: =Input!G18 -> 650
C29: Afmetingen | E29: =Input!E19 -> conform up | G29: =Input!G19 -> conform Citigo
C30: Accessoires:
D31: Automaat | E31: =Input!E21 -> traploos | G31: =Input!G21 -> niet leverbaar
D32: verwarming / koeling | E32: =Input!E22 -> climate control | G32: =Input!G22 -> nee
D33: cruise control | E33: =Input!E23 -> ja | G33: =Input!G23 -> ja
D34: navigatie | E34: =Input!E24 -> Skoda app | G34: =Input!G24 -> VW app
C36: KOSTEN
C37: Cataloguswaarde | E37: =Input!E27 -> 23,290 | G37: =Input!G27 -> 15,925
C38: Totaal bedrag accessoires | E38: =Input!E28 -> 600 | G38: =Input!G28 -> 1,234
C39: Totaal per jaar te rijden km's | E39: =Input!E29 -> 20,000 | G39: =Input!G29 -> 20,000
C40: Aantal km's in de basis leaseprijs | E40: 10,000 | G40: 10,000
C41: Extra km's | E41: =E39-E40 -> 10,000 | G41: =G39-G40 -> 10,000
C42: Meerprijs per km | E42: =Input!E31 -> 0.05 | G42: =Input!G31 -> 0.06
C43: Elektra / brandstofkosten per km | E43: =+Input!E32/Input!E33 -> 0.04 | G43: =+Input!G32/Input!G33 -> 0.08
C44: KwH / brandstofprijs | E44: =Input!E32 -> 0.25 | G44: =Input!G32 -> 1.60
C45: Km per KwH / liter brandstof | E45: =Input!E33 -> 7.00 | G45: =Input!G33 -> 20.00
C47: Niet meegenomen in de berekening:
D48: - kosten laadpaal thuis
D49: - voordeel eigen zonnepanelen
D50: - laden bij dure snelladers
